[Event "Titled Tuesday Blitz March 07 Late 2023"]
[White "Dorato, Adriano"]
[Black "Hoffmann, Asa"]
[WhiteFideId "2802894"]
[BlackFideId "2001470"]
[WhiteElo "1709"]
[BlackElo "2117"]
[Result "0-1"]
[Round "04"]
[TimeControl "180+2"]
[Date "2023.03.07"]
[WhiteClock "0:00:07"]
[BlackClock "0:01:01"]

1. d4 {[%clk 0:03:00]}  Nf6 {[%clk 0:02:57]} 2. Nf3 {[%clk 0:03:01]}  d6 {[%clk 0:02:57]} 3. e3 {[%clk 0:03:01]}  Bf5 {[%clk 0:02:54]} 4. Bd3 {[%clk 0:03:00]}  Bg6 {[%clk 0:02:54]} 5. Nbd2 {[%clk 0:03:00]}  Nbd7 {[%clk 0:02:53]} 6. O-O {[%clk 0:02:57]}  e5 {[%clk 0:02:53]} 7. e4 {[%clk 0:02:52]}  Be7 {[%clk 0:02:50]} 8. dxe5 {[%clk 0:02:50]}  dxe5 {[%clk 0:02:50]} 9. Re1 {[%clk 0:02:44]}  O-O {[%clk 0:02:40]} 10. b3 {[%clk 0:02:37]}  Re8 {[%clk 0:02:31]} 11. Bb2 {[%clk 0:02:35]}  Bb4 {[%clk 0:02:28]} 12. a3 {[%clk 0:02:30]}  Ba5 {[%clk 0:02:28]} 13. b4 {[%clk 0:02:26]}  Bb6 {[%clk 0:02:28]} 14. Nc4 {[%clk 0:02:26]}  Ng4 {[%clk 0:02:21]} 15. Re2 {[%clk 0:02:08]}  f6 {[%clk 0:02:18]} 16. h3 {[%clk 0:02:05]}  Nh6 {[%clk 0:02:18]} 17. Nxb6 {[%clk 0:01:28]}  Nxb6 {[%clk 0:02:16]} 18. Rd2 {[%clk 0:01:28]}  Qe7 {[%clk 0:02:14]} 19. Qe2 {[%clk 0:01:24]}  Nf7 {[%clk 0:02:11]} 20. Nh4 {[%clk 0:01:17]}  Rad8 {[%clk 0:02:04]} 21. Nxg6 {[%clk 0:01:13]}  hxg6 {[%clk 0:02:04]} 22. Rad1 {[%clk 0:01:04]}  c6 {[%clk 0:02:00]} 23. Qg4 {[%clk 0:00:44]}  g5 {[%clk 0:01:55]} 24. Qe2 {[%clk 0:00:41]}  Qe6 {[%clk 0:01:48]} 25. c4 {[%clk 0:00:27]}  c5 {[%clk 0:01:35]} 26. bxc5 {[%clk 0:00:18]}  Na4 {[%clk 0:01:34]} 27. Ba1 {[%clk 0:00:18]}  Nxc5 {[%clk 0:01:34]} 28. Bc2 {[%clk 0:00:16]}  b6 {[%clk 0:01:31]} 29. Rxd8 {[%clk 0:00:15]}  Rxd8 {[%clk 0:01:30]} 30. Rxd8+ {[%clk 0:00:15]}  Nxd8 {[%clk 0:01:30]} 31. Qd2 {[%clk 0:00:15]}  Qd7 {[%clk 0:01:29]} 32. Qxd7 {[%clk 0:00:15]}  Nxd7 {[%clk 0:01:29]} 33. Bc3 {[%clk 0:00:15]}  Nc5 {[%clk 0:01:29]} 34. Bb4 {[%clk 0:00:15]}  Nde6 {[%clk 0:01:28]} 35. Bxc5 {[%clk 0:00:14]}  Nxc5 {[%clk 0:01:26]} 36. Kf1 {[%clk 0:00:15]}  Ne6 {[%clk 0:01:22]} 37. Ke2 {[%clk 0:00:12]}  Kf8 {[%clk 0:01:22]} 38. Ke3 {[%clk 0:00:12]}  Ke7 {[%clk 0:01:22]} 39. Ba4 {[%clk 0:00:12]}  Kd6 {[%clk 0:01:21]} 40. Bb5 {[%clk 0:00:09]}  Kc5 {[%clk 0:01:21]} 41. a4 {[%clk 0:00:09]}  a5 {[%clk 0:01:20]} 42. g3 {[%clk 0:00:08]}  Nd4 {[%clk 0:01:20]} 43. Kd3 {[%clk 0:00:07]}  Nxb5 {[%clk 0:01:17]} 44. cxb5 {[%clk 0:00:06]}  Kb4 {[%clk 0:01:17]} 45. f3 {[%clk 0:00:06]}  Kxa4 {[%clk 0:01:16]} 46. Kc4 {[%clk 0:00:07]}  Ka3 {[%clk 0:01:16]} 47. Kd5 {[%clk 0:00:07]}  a4 {[%clk 0:01:12]} 48. Kc6 {[%clk 0:00:07]}  Kb3 {[%clk 0:01:09]} 49. Kxb6 {[%clk 0:00:07]}  a3 {[%clk 0:01:09]} 50. Kc7 {[%clk 0:00:08]}  a2 {[%clk 0:01:09]} 51. b6 {[%clk 0:00:09]}  a1=Q {[%clk 0:01:08]} 52. b7 {[%clk 0:00:10]}  Qc3+ {[%clk 0:01:07]} 53. Kb8 {[%clk 0:00:10]}  Kc2 {[%clk 0:01:05]} 54. Ka8 {[%clk 0:00:09]}  Qa5+ {[%clk 0:01:03]} 55. Kb8 {[%clk 0:00:09]}  Kd3 {[%clk 0:01:03]} 56. Kc8 {[%clk 0:00:10]}  Qc5+ {[%clk 0:01:03]} 57. Kd7 {[%clk 0:00:08]}  Qb6 {[%clk 0:01:02]} 58. Kc8 {[%clk 0:00:08]}  Qc6+ {[%clk 0:01:02]} 59. Kb8 {[%clk 0:00:07]}  Ke3 {[%clk 0:01:02]} 60. Ka7 {[%clk 0:00:08]}  Qxb7+ {[%clk 0:01:02]} 61. Kxb7 {[%clk 0:00:08]}  Kxf3 {[%clk 0:01:02]} 62. Kc6 {[%clk 0:00:08]}  Kxe4 {[%clk 0:01:02]} 63. Kd6 {[%clk 0:00:08]}  Kf3 {[%clk 0:01:02]} 64. Ke6 {[%clk 0:00:07]}  Kxg3 {[%clk 0:01:01]} 0-1


[Site "https://www.chess.com"]

[Event "Titled Tuesday Blitz March 07 Late 2023"]
[White "Ricaurte Lopez, Juan Carlos"]
[Black "Hajiyev, Kanan"]
[WhiteFideId "3600327"]
[BlackFideId "13404148"]
[WhiteElo "2209"]
[BlackElo "2103"]
[Result "1-0"]
[Round "04"]
[TimeControl "180+2"]
[Date "2023.03.07"]
[WhiteClock "0:01:13"]
[BlackClock "0:00:19"]

1. e3 {[%clk 0:03:00]}  c5 {[%clk 0:02:50]} 2. f3 {[%clk 0:02:59]}  d5 {[%clk 0:02:50]} 3. b3 {[%clk 0:02:56]}  Nc6 {[%clk 0:02:50]} 4. Bb2 {[%clk 0:02:53]}  Nf6 {[%clk 0:02:51]} 5. g3 {[%clk 0:02:53]}  g6 {[%clk 0:02:52]} 6. Bg2 {[%clk 0:02:52]}  Bg7 {[%clk 0:02:52]} 7. Ne2 {[%clk 0:02:52]}  O-O {[%clk 0:02:52]} 8. O-O {[%clk 0:02:51]}  d4 {[%clk 0:02:52]} 9. a4 {[%clk 0:02:37]}  Nd5 {[%clk 0:01:48]} 10. exd4 {[%clk 0:02:24]}  cxd4 {[%clk 0:01:43]} 11. Nc1 {[%clk 0:02:14]}  h5 {[%clk 0:01:23]} 12. Na3 {[%clk 0:02:12]}  Bf5 {[%clk 0:01:21]} 13. g4 {[%clk 0:02:08]}  hxg4 {[%clk 0:01:01]} 14. fxg4 {[%clk 0:02:08]}  Be6 {[%clk 0:01:02]} 15. Nd3 {[%clk 0:02:07]}  Ne5 {[%clk 0:00:51]} 16. Nxe5 {[%clk 0:01:57]}  Bxe5 {[%clk 0:00:52]} 17. Qf3 {[%clk 0:01:50]}  Qd6 {[%clk 0:00:46]} 18. h3 {[%clk 0:01:47]}  a6 {[%clk 0:00:46]} 19. Nc4 {[%clk 0:01:46]}  Qc7 {[%clk 0:00:46]} 20. Nxe5 {[%clk 0:01:44]}  Qxe5 {[%clk 0:00:47]} 21. Rae1 {[%clk 0:01:41]}  Qg7 {[%clk 0:00:45]} 22. Qe4 {[%clk 0:01:40]}  Nb4 {[%clk 0:00:41]} 23. Bxd4 {[%clk 0:01:39]}  Qh6 {[%clk 0:00:40]} 24. Be3 {[%clk 0:01:35]}  f5 {[%clk 0:00:18]} 25. Qxb4 {[%clk 0:01:34]}  f4 {[%clk 0:00:18]} 26. Bd4 {[%clk 0:01:23]}  g5 {[%clk 0:00:19]} 27. Qxe7 {[%clk 0:01:21]}  Rae8 {[%clk 0:00:18]} 28. Rxe6 {[%clk 0:01:17]}  Qxe6 {[%clk 0:00:16]} 29. Qxe6+ {[%clk 0:01:17]}  Rxe6 {[%clk 0:00:17]} 30. Bd5 {[%clk 0:01:17]}  Kf7 {[%clk 0:00:18]} 31. Re1 {[%clk 0:01:16]}  Re8 {[%clk 0:00:18]} 32. Rxe6 {[%clk 0:01:16]}  Rxe6 {[%clk 0:00:19]} 33. Kf2 {[%clk 0:01:14]}  Ke7 {[%clk 0:00:18]} 34. Bxe6 {[%clk 0:01:13]}  Kxe6 {[%clk 0:00:19]} 1-0


[Site "https://www.chess.com"]

[Event "Titled Tuesday Blitz March 07 Late 2023"]
[White "mohsengabr2002"]
[Black "Jovic, Stanoje"]
[BlackFideId "905020"]
[WhiteElo "2302"]
[BlackElo "2236"]
[Result "1-0"]
[Round "04"]
[TimeControl "180+2"]
[Date "2023.03.07"]
[WhiteClock "0:01:21"]
[BlackClock "0:00:01"]

1. g3 {[%clk 0:03:00]}  d5 {[%clk 0:02:57]} 2. f3 {[%clk 0:03:01]}  e5 {[%clk 0:02:56]} 3. e3 {[%clk 0:03:02]}  c5 {[%clk 0:02:55]} 4. d3 {[%clk 0:03:03]}  Nc6 {[%clk 0:02:55]} 5. c3 {[%clk 0:03:04]}  f5 {[%clk 0:02:55]} 6. Nh3 {[%clk 0:03:04]}  Nf6 {[%clk 0:02:54]} 7. Bg2 {[%clk 0:03:03]}  Bd6 {[%clk 0:02:52]} 8. f4 {[%clk 0:03:03]}  e4 {[%clk 0:02:51]} 9. Nf2 {[%clk 0:03:03]}  O-O {[%clk 0:02:48]} 10. O-O {[%clk 0:03:03]}  Be6 {[%clk 0:02:46]} 11. dxe4 {[%clk 0:03:00]}  fxe4 {[%clk 0:02:45]} 12. g4 {[%clk 0:02:59]}  c4 {[%clk 0:02:32]} 13. Na3 {[%clk 0:02:50]}  Bxa3 {[%clk 0:02:29]} 14. bxa3 {[%clk 0:02:50]}  Nd7 {[%clk 0:02:28]} 15. a4 {[%clk 0:02:44]}  Nc5 {[%clk 0:02:27]} 16. Ba3 {[%clk 0:02:43]}  Nd3 {[%clk 0:02:27]} 17. Bxf8 {[%clk 0:02:42]}  Qxf8 {[%clk 0:02:26]} 18. Rb1 {[%clk 0:02:38]}  b6 {[%clk 0:02:17]} 19. Nxe4 {[%clk 0:02:37]}  dxe4 {[%clk 0:02:10]} 20. Bxe4 {[%clk 0:02:37]}  Qc5 {[%clk 0:02:06]} 21. Qf3 {[%clk 0:02:35]}  Rc8 {[%clk 0:02:01]} 22. Rb5 {[%clk 0:02:34]}  Qa3 {[%clk 0:01:56]} 23. Bxc6 {[%clk 0:02:32]}  Rd8 {[%clk 0:01:33]} 24. Bd5 {[%clk 0:02:28]}  Bxd5 {[%clk 0:01:29]} 25. Rxd5 {[%clk 0:02:28]}  Re8 {[%clk 0:01:30]} 26. Rd4 {[%clk 0:02:08]}  Nc5 {[%clk 0:01:13]} 27. Rxc4 {[%clk 0:02:05]}  Kh8 {[%clk 0:01:05]} 28. f5 {[%clk 0:02:01]}  Qxa2 {[%clk 0:01:02]} 29. Rf4 {[%clk 0:01:50]}  Qd2 {[%clk 0:00:51]} 30. f6 {[%clk 0:01:48]}  gxf6 {[%clk 0:00:40]} 31. Rxf6 {[%clk 0:01:48]}  Qxe3+ {[%clk 0:00:31]} 32. Qxe3 {[%clk 0:01:46]}  Rxe3 {[%clk 0:00:31]} 33. R6f3 {[%clk 0:01:40]}  Re4 {[%clk 0:00:28]} 34. Rf4 {[%clk 0:01:40]}  Re3 {[%clk 0:00:28]} 35. R1f3 {[%clk 0:01:39]}  Re2 {[%clk 0:00:22]} 36. Rf7 {[%clk 0:01:33]}  Kg8 {[%clk 0:00:17]} 37. Rxa7 {[%clk 0:01:31]}  Ne4 {[%clk 0:00:11]} 38. Rd3 {[%clk 0:01:24]}  Nf6 {[%clk 0:00:05]} 39. Rd8+ {[%clk 0:01:23]}  Ne8 {[%clk 0:00:05]} 40. Raa8 {[%clk 0:01:22]}  Kf7 {[%clk 0:00:05]} 41. Rxe8 {[%clk 0:01:22]}  Rxe8 {[%clk 0:00:05]} 42. Rxe8 {[%clk 0:01:21]}  Kxe8 {[%clk 0:00:05]} 43. Kf2 {[%clk 0:01:21]}  Kd7 {[%clk 0:00:06]} 44. Ke3 {[%clk 0:01:22]}  Ke6 {[%clk 0:00:04]} 45. h4 {[%clk 0:01:21]}  Ke5 {[%clk 0:00:02]} 46. c4 {[%clk 0:01:21]}  h6 {[%clk 0:00:01]} 47. g5 {[%clk 0:01:21]} 1-0


[Site "https://www.chess.com"]

[Event "Titled Tuesday Blitz March 07 Late 2023"]
[White "Sailer, Mike"]
[Black "Rostomyan, Mikayel"]
[WhiteFideId "2012901"]
[BlackFideId "13313754"]
[WhiteElo "2109"]
[BlackElo "2009"]
[Result "0-1"]
[Round "04"]
[TimeControl "180+2"]
[Date "2023.03.07"]
[WhiteClock "0:00:02"]
[BlackClock "0:00:39"]

1. d4 {[%clk 0:03:00]}  Nf6 {[%clk 0:03:00]} 2. Bg5 {[%clk 0:02:54]}  d5 {[%clk 0:02:59]} 3. Bxf6 {[%clk 0:02:48]}  gxf6 {[%clk 0:03:00]} 4. e3 {[%clk 0:02:49]}  e5 {[%clk 0:02:59]} 5. Nf3 {[%clk 0:02:46]}  c5 {[%clk 0:02:58]} 6. Bb5+ {[%clk 0:02:43]}  Bd7 {[%clk 0:02:56]} 7. Bxd7+ {[%clk 0:02:43]}  Qxd7 {[%clk 0:02:57]} 8. dxc5 {[%clk 0:02:29]}  Na6 {[%clk 0:02:57]} 9. Nbd2 {[%clk 0:02:28]}  Nxc5 {[%clk 0:02:54]} 10. Qe2 {[%clk 0:02:28]}  Be7 {[%clk 0:02:51]} 11. O-O-O {[%clk 0:02:25]}  O-O-O {[%clk 0:02:50]} 12. Kb1 {[%clk 0:02:26]}  Kb8 {[%clk 0:02:51]} 13. Rc1 {[%clk 0:02:27]}  Rc8 {[%clk 0:02:45]} 14. c4 {[%clk 0:02:25]}  Qf5+ {[%clk 0:02:37]} 15. Ka1 {[%clk 0:02:19]}  Nd3 {[%clk 0:02:37]} 16. Rc3 {[%clk 0:02:16]}  Bb4 {[%clk 0:02:32]} 17. Rxd3 {[%clk 0:02:13]}  dxc4 {[%clk 0:02:31]} 18. Rd5 {[%clk 0:02:01]}  c3 {[%clk 0:02:25]} 19. e4 {[%clk 0:01:28]}  cxd2 {[%clk 0:01:58]} 20. Nxd2 {[%clk 0:01:19]}  Qf4 {[%clk 0:01:50]} 21. Nb3 {[%clk 0:01:12]}  f5 {[%clk 0:01:33]} 22. f3 {[%clk 0:01:05]}  fxe4 {[%clk 0:01:33]} 23. Qxe4 {[%clk 0:00:55]}  Qxe4 {[%clk 0:01:31]} 24. fxe4 {[%clk 0:00:56]}  Rc2 {[%clk 0:01:29]} 25. Rxe5 {[%clk 0:00:56]}  Rxg2 {[%clk 0:01:26]} 26. a3 {[%clk 0:00:56]}  Bd6 {[%clk 0:01:24]} 27. Rf5 {[%clk 0:00:55]}  Bxh2 {[%clk 0:01:24]} 28. Rxf7 {[%clk 0:00:54]}  Be5 {[%clk 0:01:24]} 29. Rb1 {[%clk 0:00:30]}  h5 {[%clk 0:01:24]} 30. Nc5 {[%clk 0:00:30]}  Kc8 {[%clk 0:01:08]} 31. Nxb7 {[%clk 0:00:16]}  h4 {[%clk 0:01:05]} 32. Na5 {[%clk 0:00:12]}  h3 {[%clk 0:01:03]} 33. Rc1+ {[%clk 0:00:13]}  Kd8 {[%clk 0:00:56]} 34. Nc6+ {[%clk 0:00:13]}  Ke8 {[%clk 0:00:52]} 35. Re7+ {[%clk 0:00:13]}  Kf8 {[%clk 0:00:49]} 36. Rf1+ {[%clk 0:00:13]}  Kg8 {[%clk 0:00:48]} 37. Rxe5 {[%clk 0:00:05]}  h2 {[%clk 0:00:46]} 38. Re8+ {[%clk 0:00:04]}  Kg7 {[%clk 0:00:46]} 39. Re7+ {[%clk 0:00:04]}  Kh6 {[%clk 0:00:39]} 40. Re6+ {[%clk 0:00:01]}  Kg5 {[%clk 0:00:38]} 41. Rf5+ {[%clk 0:00:02]}  Kh4 {[%clk 0:00:38]} 42. Rf4+ {[%clk 0:00:01]}  Kg3 {[%clk 0:00:38]} 43. Rg6+ {[%clk 0:00:01]}  Kxf4 {[%clk 0:00:39]} 44. Rxg2 {[%clk 0:00:02]}  h1=Q+ {[%clk 0:00:39]} 0-1


[Site "https://www.chess.com"]

[Event "Titled Tuesday Blitz March 07 Late 2023"]
[White "Souza, Gustavo Horokoski De"]
[Black "Sarkar, Justin"]
[WhiteFideId "2146584"]
[BlackFideId "2010011"]
[WhiteElo "1859"]
[BlackElo "2189"]
[Result "1-0"]
[Round "04"]
[TimeControl "180+2"]
[Date "2023.03.07"]
[WhiteClock "0:00:48"]
[BlackClock "0:00:03"]

1. d4 {[%clk 0:02:48]}  Nf6 {[%clk 0:02:52]} 2. c4 {[%clk 0:02:48]}  e6 {[%clk 0:02:52]} 3. Nc3 {[%clk 0:02:48]}  Bb4 {[%clk 0:02:51]} 4. e3 {[%clk 0:02:45]}  c6 {[%clk 0:02:41]} 5. Ne2 {[%clk 0:02:36]}  d5 {[%clk 0:02:37]} 6. a3 {[%clk 0:02:29]}  Ba5 {[%clk 0:02:25]} 7. b4 {[%clk 0:02:28]}  Bc7 {[%clk 0:02:23]} 8. Ng3 {[%clk 0:02:23]}  O-O {[%clk 0:02:20]} 9. Bb2 {[%clk 0:02:23]}  a5 {[%clk 0:01:55]} 10. b5 {[%clk 0:02:22]}  e5 {[%clk 0:01:46]} 11. cxd5 {[%clk 0:02:12]}  Nxd5 {[%clk 0:01:34]} 12. bxc6 {[%clk 0:01:44]}  Nxc3 {[%clk 0:01:08]} 13. Bxc3 {[%clk 0:01:45]}  Nxc6 {[%clk 0:00:54]} 14. d5 {[%clk 0:01:42]}  Ne7 {[%clk 0:00:54]} 15. e4 {[%clk 0:01:41]}  f5 {[%clk 0:00:47]} 16. exf5 {[%clk 0:01:35]}  Nxf5 {[%clk 0:00:36]} 17. Bc4 {[%clk 0:01:28]}  Nd6 {[%clk 0:00:29]} 18. Ba2 {[%clk 0:01:24]}  e4 {[%clk 0:00:16]} 19. O-O {[%clk 0:01:21]}  b5 {[%clk 0:00:14]} 20. Qd4 {[%clk 0:01:12]}  Qg5 {[%clk 0:00:08]} 21. Nxe4 {[%clk 0:01:00]}  Nxe4 {[%clk 0:00:07]} 22. Qxe4 {[%clk 0:00:56]}  Bd6 {[%clk 0:00:04]} 23. Bb1 {[%clk 0:00:50]}  g6 {[%clk 0:00:03]} 24. Qd4 {[%clk 0:00:48]} 1-0


[Site "https://www.chess.com"]

[Event "Titled Tuesday Blitz March 07 Late 2023"]
[White "Levine, David"]
[Black "Sai Han Thiha"]
[WhiteFideId "2011611"]
[BlackFideId "13012290"]
[WhiteElo "2072"]
[BlackElo "1954"]
[Result "0-1"]
[Round "04"]
[TimeControl "180+2"]
[Date "2023.03.07"]
[WhiteClock "0:00:01"]
[BlackClock "0:00:03"]

1. d4 {[%clk 0:03:00]}  Nf6 {[%clk 0:02:59]} 2. c4 {[%clk 0:02:59]}  e6 {[%clk 0:02:59]} 3. g3 {[%clk 0:02:59]}  d5 {[%clk 0:02:59]} 4. Bg2 {[%clk 0:02:58]}  dxc4 {[%clk 0:02:59]} 5. Nf3 {[%clk 0:02:57]}  c5 {[%clk 0:02:59]} 6. O-O {[%clk 0:02:54]}  Nc6 {[%clk 0:03:00]} 7. Qa4 {[%clk 0:02:51]}  Bd7 {[%clk 0:03:00]} 8. Qxc4 {[%clk 0:02:51]}  cxd4 {[%clk 0:03:00]} 9. Nxd4 {[%clk 0:02:49]}  Rc8 {[%clk 0:03:01]} 10. Nc3 {[%clk 0:02:44]}  Nxd4 {[%clk 0:03:01]} 11. Qxd4 {[%clk 0:02:44]}  Bc5 {[%clk 0:03:02]} 12. Qh4 {[%clk 0:02:36]}  b6 {[%clk 0:03:02]} 13. Bf4 {[%clk 0:02:29]}  Be7 {[%clk 0:02:50]} 14. Be5 {[%clk 0:02:12]}  O-O {[%clk 0:02:17]} 15. Rfd1 {[%clk 0:02:03]}  Qe8 {[%clk 0:02:17]} 16. Qg5 {[%clk 0:01:52]}  h6 {[%clk 0:01:41]} 17. Qd2 {[%clk 0:01:51]}  Bc6 {[%clk 0:01:41]} 18. f3 {[%clk 0:01:47]}  Bc5+ {[%clk 0:01:29]} 19. Kh1 {[%clk 0:01:46]}  Nd5 {[%clk 0:01:28]} 20. Nxd5 {[%clk 0:01:42]}  Bxd5 {[%clk 0:01:28]} 21. e4 {[%clk 0:01:41]}  Bc6 {[%clk 0:01:25]} 22. Rac1 {[%clk 0:01:30]}  Qe7 {[%clk 0:01:14]} 23. Qe2 {[%clk 0:00:56]}  Bb7 {[%clk 0:00:43]} 24. Qb5 {[%clk 0:00:50]}  Rfd8 {[%clk 0:00:39]} 25. a3 {[%clk 0:00:46]}  a6 {[%clk 0:00:38]} 26. Qe2 {[%clk 0:00:46]}  a5 {[%clk 0:00:38]} 27. Bc3 {[%clk 0:00:41]}  f6 {[%clk 0:00:34]} 28. Rxd8+ {[%clk 0:00:40]}  Rxd8 {[%clk 0:00:34]} 29. Rd1 {[%clk 0:00:40]}  Rd7 {[%clk 0:00:28]} 30. h4 {[%clk 0:00:39]}  Kh7 {[%clk 0:00:28]} 31. Bh3 {[%clk 0:00:33]}  Rd6 {[%clk 0:00:19]} 32. Rxd6 {[%clk 0:00:30]}  Qxd6 {[%clk 0:00:19]} 33. Kg2 {[%clk 0:00:25]}  Bc8 {[%clk 0:00:11]} 34. Qd2 {[%clk 0:00:24]}  Qxd2+ {[%clk 0:00:09]} 35. Bxd2 {[%clk 0:00:24]}  a4 {[%clk 0:00:10]} 36. Kf1 {[%clk 0:00:21]}  Bd4 {[%clk 0:00:10]} 37. Bc1 {[%clk 0:00:18]}  Ba6+ {[%clk 0:00:10]} 38. Kg2 {[%clk 0:00:18]}  Bc4 {[%clk 0:00:08]} 39. f4 {[%clk 0:00:14]}  Kg6 {[%clk 0:00:07]} 40. Kf3 {[%clk 0:00:13]}  Kf7 {[%clk 0:00:06]} 41. h5 {[%clk 0:00:11]}  Ke7 {[%clk 0:00:06]} 42. Bg2 {[%clk 0:00:10]}  Kd6 {[%clk 0:00:05]} 43. g4 {[%clk 0:00:09]}  Bb3 {[%clk 0:00:05]} 44. Bh3 {[%clk 0:00:07]}  Kc5 {[%clk 0:00:04]} 45. g5 {[%clk 0:00:06]}  fxg5 {[%clk 0:00:03]} 46. fxg5 {[%clk 0:00:06]}  hxg5 {[%clk 0:00:03]} 47. Kg4 {[%clk 0:00:05]}  Bd1+ {[%clk 0:00:03]} 48. Kxg5 {[%clk 0:00:04]}  Kc4 {[%clk 0:00:03]} 49. Bxe6+ {[%clk 0:00:03]}  Kd3 {[%clk 0:00:03]} 50. Bd5 {[%clk 0:00:03]}  Kc2 {[%clk 0:00:04]} 51. Bf4 {[%clk 0:00:02]}  Kxb2 {[%clk 0:00:04]} 52. h6 {[%clk 0:00:02]}  gxh6+ {[%clk 0:00:03]} 53. Kxh6 {[%clk 0:00:02]}  Kxa3 {[%clk 0:00:04]} 54. Bd6+ {[%clk 0:00:01]}  Bc5 {[%clk 0:00:03]} 0-1


[Site "https://www.chess.com"]

[Event "Titled Tuesday Blitz March 07 Late 2023"]
[White "Erzhanov, Arman"]
[Black "rikchessmx"]
[WhiteFideId "4138821"]
[WhiteElo "2138"]
[BlackElo "2184"]
[Result "1-0"]
[Round "04"]
[TimeControl "180+2"]
[Date "2023.03.07"]
[WhiteClock "0:00:07"]
[BlackClock "0:01:07"]

1. e4 {[%clk 0:03:00]}  e5 {[%clk 0:02:59]} 2. Nf3 {[%clk 0:03:00]}  Nc6 {[%clk 0:03:00]} 3. Bb5 {[%clk 0:02:58]}  a6 {[%clk 0:03:00]} 4. Bxc6 {[%clk 0:02:58]}  dxc6 {[%clk 0:03:00]} 5. O-O {[%clk 0:02:59]}  f6 {[%clk 0:03:00]} 6. d4 {[%clk 0:02:59]}  exd4 {[%clk 0:03:01]} 7. Nxd4 {[%clk 0:02:59]}  Qe7 {[%clk 0:03:00]} 8. Bf4 {[%clk 0:02:53]}  h5 {[%clk 0:02:56]} 9. Nf5 {[%clk 0:02:48]}  Qf7 {[%clk 0:02:55]} 10. Re1 {[%clk 0:02:35]}  g5 {[%clk 0:02:54]} 11. Bd2 {[%clk 0:02:31]}  Ne7 {[%clk 0:02:49]} 12. Ba5 {[%clk 0:02:14]}  Ng6 {[%clk 0:02:46]} 13. Nd2 {[%clk 0:01:59]}  b6 {[%clk 0:02:45]} 14. Bc3 {[%clk 0:01:58]}  Be6 {[%clk 0:02:43]} 15. Nf3 {[%clk 0:01:49]}  g4 {[%clk 0:02:41]} 16. N3d4 {[%clk 0:01:45]}  O-O-O {[%clk 0:02:38]} 17. Qe2 {[%clk 0:01:43]}  Bc4 {[%clk 0:02:38]} 18. Qe3 {[%clk 0:01:36]}  c5 {[%clk 0:02:22]} 19. Ne2 {[%clk 0:01:04]}  Re8 {[%clk 0:02:21]} 20. Nf4 {[%clk 0:01:00]}  Ne7 {[%clk 0:02:06]} 21. Nxe7+ {[%clk 0:00:54]}  Rxe7 {[%clk 0:02:06]} 22. b3 {[%clk 0:00:54]}  Be6 {[%clk 0:02:06]} 23. Qd3 {[%clk 0:00:51]}  Rd7 {[%clk 0:01:57]} 24. Qxa6+ {[%clk 0:00:50]}  Kb8 {[%clk 0:01:56]} 25. Nxe6 {[%clk 0:00:48]}  Qxe6 {[%clk 0:01:55]} 26. a4 {[%clk 0:00:48]}  g3 {[%clk 0:01:30]} 27. fxg3 {[%clk 0:00:46]}  h4 {[%clk 0:01:30]} 28. gxh4 {[%clk 0:00:36]}  Rg8 {[%clk 0:01:29]} 29. a5 {[%clk 0:00:31]}  Rdg7 {[%clk 0:01:28]} 30. Re2 {[%clk 0:00:30]}  Rxg2+ {[%clk 0:01:23]} 31. Rxg2 {[%clk 0:00:29]}  Rxg2+ {[%clk 0:01:23]} 32. Kxg2 {[%clk 0:00:30]}  Qxe4+ {[%clk 0:01:23]} 33. Kf2 {[%clk 0:00:28]}  Qf4+ {[%clk 0:01:21]} 34. Ke2 {[%clk 0:00:26]}  Qxh2+ {[%clk 0:01:21]} 35. Kd3 {[%clk 0:00:22]}  Qg3+ {[%clk 0:01:15]} 36. Kc4 {[%clk 0:00:21]}  Qf4+ {[%clk 0:01:15]} 37. Kb5 {[%clk 0:00:21]}  c6+ {[%clk 0:01:11]} 38. Kxc6 {[%clk 0:00:13]}  Qf3+ {[%clk 0:01:10]} 39. Kxb6 {[%clk 0:00:06]}  Qxc3 {[%clk 0:01:07]} 40. Qa7+ {[%clk 0:00:06]}  Kc8 {[%clk 0:01:07]} 41. Qc7# {[%clk 0:00:07]} 1-0


[Site "https://www.chess.com"]

[Event "Titled Tuesday Blitz March 07 Late 2023"]
[White "Sabar, Ethmane Daouda"]
[Black "sissahungrychess"]
[WhiteFideId "19600097"]
[WhiteElo "1950"]
[BlackElo "2376"]
[Result "0-1"]
[Round "04"]
[TimeControl "180+2"]
[Date "2023.03.07"]
[WhiteClock "0:00:37"]
[BlackClock "0:00:19"]

1. b3 {[%clk 0:03:00]}  e5 {[%clk 0:02:59]} 2. Bb2 {[%clk 0:03:01]}  Nc6 {[%clk 0:03:00]} 3. e3 {[%clk 0:03:01]}  Nf6 {[%clk 0:03:01]} 4. Bb5 {[%clk 0:02:59]}  Bd6 {[%clk 0:03:00]} 5. Nf3 {[%clk 0:02:55]}  e4 {[%clk 0:02:56]} 6. Nd4 {[%clk 0:02:52]}  O-O {[%clk 0:02:49]} 7. O-O {[%clk 0:02:50]}  Nxd4 {[%clk 0:02:44]} 8. Bxd4 {[%clk 0:02:51]}  c6 {[%clk 0:02:45]} 9. Be2 {[%clk 0:02:49]}  Bc7 {[%clk 0:02:45]} 10. c4 {[%clk 0:02:48]}  d5 {[%clk 0:02:45]} 11. cxd5 {[%clk 0:02:48]}  Nxd5 {[%clk 0:02:40]} 12. d3 {[%clk 0:02:43]}  Qd6 {[%clk 0:02:33]} 13. g3 {[%clk 0:02:41]}  Bh3 {[%clk 0:02:33]} 14. Re1 {[%clk 0:02:41]}  Bf5 {[%clk 0:02:30]} 15. dxe4 {[%clk 0:02:40]}  Bxe4 {[%clk 0:02:31]} 16. Bf3 {[%clk 0:02:40]}  Bxf3 {[%clk 0:02:19]} 17. Qxf3 {[%clk 0:02:41]}  Nb4 {[%clk 0:02:11]} 18. Na3 {[%clk 0:02:39]}  Nd3 {[%clk 0:02:03]} 19. Red1 {[%clk 0:02:34]}  Ne5 {[%clk 0:01:46]} 20. Qh5 {[%clk 0:02:19]}  Qxa3 {[%clk 0:01:24]} 21. Bxe5 {[%clk 0:02:18]}  Qc5 {[%clk 0:01:24]} 22. f4 {[%clk 0:02:04]}  Qxe3+ {[%clk 0:01:24]} 23. Kg2 {[%clk 0:02:04]}  Bxe5 {[%clk 0:01:14]} 24. Qxe5 {[%clk 0:02:03]}  Qxe5 {[%clk 0:01:10]} 25. fxe5 {[%clk 0:02:04]}  Rad8 {[%clk 0:01:11]} 26. Kf3 {[%clk 0:02:01]}  Rfe8 {[%clk 0:01:11]} 27. Kf4 {[%clk 0:01:58]}  Kf8 {[%clk 0:01:09]} 28. Rd6 {[%clk 0:01:52]}  Rxd6 {[%clk 0:01:05]} 29. exd6 {[%clk 0:01:53]}  Rd8 {[%clk 0:01:06]} 30. Ke5 {[%clk 0:01:44]}  Re8+ {[%clk 0:01:06]} 31. Kf5 {[%clk 0:01:26]}  Re6 {[%clk 0:01:04]} 32. Rd1 {[%clk 0:01:25]}  Ke8 {[%clk 0:01:05]} 33. d7+ {[%clk 0:01:23]}  Kd8 {[%clk 0:01:05]} 34. Rd4 {[%clk 0:01:14]}  h6 {[%clk 0:00:57]} 35. Ra4 {[%clk 0:01:08]}  a6 {[%clk 0:00:55]} 36. Rb4 {[%clk 0:01:09]}  b5 {[%clk 0:00:55]} 37. a4 {[%clk 0:01:08]}  Kxd7 {[%clk 0:00:51]} 38. axb5 {[%clk 0:01:09]}  axb5 {[%clk 0:00:49]} 39. Rd4+ {[%clk 0:01:09]}  Rd6 {[%clk 0:00:49]} 40. Re4 {[%clk 0:01:08]}  Rd5+ {[%clk 0:00:47]} 41. Kf4 {[%clk 0:01:09]}  c5 {[%clk 0:00:45]} 42. Kf3 {[%clk 0:01:06]}  Rd6 {[%clk 0:00:39]} 43. Rg4 {[%clk 0:01:04]}  g5 {[%clk 0:00:28]} 44. Ke3 {[%clk 0:01:03]}  Ke6 {[%clk 0:00:26]} 45. Re4+ {[%clk 0:01:02]}  Kf5 {[%clk 0:00:26]} 46. g4+ {[%clk 0:00:55]}  Kf6 {[%clk 0:00:26]} 47. Kf2 {[%clk 0:00:44]}  Re6 {[%clk 0:00:21]} 48. Ke3 {[%clk 0:00:40]}  Rxe4+ {[%clk 0:00:20]} 49. Kxe4 {[%clk 0:00:41]}  Ke6 {[%clk 0:00:21]} 50. h3 {[%clk 0:00:40]}  f6 {[%clk 0:00:20]} 51. b4 {[%clk 0:00:38]}  cxb4 {[%clk 0:00:19]} 52. Kd4 {[%clk 0:00:38]}  f5 {[%clk 0:00:19]} 53. gxf5+ {[%clk 0:00:37]}  Kxf5 {[%clk 0:00:19]} 0-1


[Site "https://www.chess.com"]